bitfinex-derivatives/quotes_BTCF0:USTF0_20250309
["timestamp","ask_amount","ask_price","bid_price","bid_amount"]
[1741532446644,0.1224458,83735.0,83734.0,0.0062]
[1741532447438,0.4832458,83735.0,83734.0,0.0062]
[1741532448046,0.6128458,83735.0,83734.0,0.0062]
[1741532448547,0.7407458,83735.0,83734.0,0.0062]
[1741532449241,0.7407458,83735.0,83734.0,0.1305]
[1741532449458,0.7407458,83735.0,83734.0,0.2628]
[1741532450142,0.4934,83735.0,83734.0,0.2628]
[1741532450344,0.4934,83735.0,83734.0,0.3822472]
[1741532450734,0.6128458,83735.0,83734.0,0.2628]
[1741532450939,0.2520458,83735.0,83734.0,0.2628]
[1741532451348,0.2520458,83735.0,83734.0,0.3822472]
[1741532452149,0.6128458,83735.0,83734.0,0.2628]
[1741532452947,0.2520458,83735.0,83734.0,0.2628]
[1741532453944,0.1326,83735.0,83734.0,0.2628]
[1741532455149,0.1326,83735.0,83734.0,0.3822472]
[1741532455850,0.1326,83735.0,83734.0,0.3780472]
[1741532456353,0.003,83735.0,83734.0,0.3780472]
[1741532456946,0.003,83735.0,83734.0,0.2586]
[1741532457452,0.134,83735.0,83734.0,0.2586]
[1741532457855,0.134,83735.0,83734.0,0.3780472]
[1741532459149,0.134,83735.0,83734.0,0.2586]
[1741532459352,0.2534458,83735.0,83734.0,0.2586]
[1741532460554,0.6142458,83735.0,83734.0,0.2586]
[1741532461055,0.6142458,83735.0,83734.0,0.1263]
[1741532461258,0.134,83735.0,83734.0,0.1263]
[1741532461455,0.003,83735.0,83734.0,0.3733472]
[1741532464253,0.1224458,83735.0,83734.0,0.2539]
[1741532464652,0.1224458,83735.0,83734.0,0.3733472]
[1741532465054,0.003,83735.0,83734.0,0.3733472]
[1741532465351,0.3608,83742.0,83734.0,0.6147]
[1741532465651,0.3608,83742.0,83741.0,0.1194373]
[1741532465852,0.39127818,83753.0,83741.0,0.2069973]
[1741532466059,0.47883818,83753.0,83742.0,0.1213]
[1741532466354,0.1194344,83743.0,83742.0,0.1213]
[1741532467258,0.1194344,83743.0,83742.0,0.1223]
[1741532467658,0.1194344,83743.0,83742.0,0.1233]
[1741532467659,0.13389213,83743.0,83742.0,0.1233]
[1741532467857,0.26739213,83743.0,83742.0,0.002]
[1741532468057,0.1194472,83734.0,83733.0,0.00481]
[1741532468265,0.4802472,83734.0,83733.0,0.00481]
[1741532468655,0.7379472,83734.0,83733.0,0.00481]
[1741532469760,0.7369472,83734.0,83733.0,0.00481]
[1741532470157,0.7359472,83734.0,83733.0,0.00481]
[1741532470558,0.7369472,83734.0,83733.0,0.00581]
[1741532470769,0.7369472,83734.0,83733.0,0.001]
[1741532471354,0.7399472,83734.0,83733.0,0.002]
[1741532471974,0.6225,83734.0,83733.0,0.002]
[1741532472162,0.1375,83734.0,83733.0,0.1214487]
[1741532472567,0.004,83734.0,83733.0,0.1214487]
[1741532472761,0.00017877,83742.0,83741.0,0.1194373]
[1741532473161,0.1328,83750.0,83741.0,0.4832]
[1741532473362,0.08756,83756.0,83754.0,0.1194187]
[1741532473557,0.2614,83760.0,83754.0,0.1194187]
[1741532473752,0.01379111,83757.0,83754.0,0.1194187]
[1741532474365,0.7590088,83761.0,83754.0,0.1194187]
[1741532474366,0.00104001,83761.0,83754.0,0.2418187]
[1741532474570,0.3608,83765.0,83754.0,0.2418187]
[1741532474754,0.3608,83765.0,83754.0,0.1224]
[1741532474954,0.0597061,83759.0,83754.0,0.1224]
[1741532475160,0.12120922,83755.0,83754.0,0.1224]
[1741532475361,0.12520922,83755.0,83754.0,0.1234]
[1741532476068,0.12620922,83755.0,83754.0,0.1244]
[1741532476258,0.00679192,83755.0,83754.0,0.2438187]
[1741532476870,0.12789192,83755.0,83754.0,0.2438187]
[1741532477072,0.12789192,83755.0,83754.0,0.1244]
[1741532477073,0.24730922,83755.0,83754.0,0.1244]
[1741532477772,0.24730922,83755.0,83754.0,0.2438187]
[1741532478367,0.12789192,83755.0,83754.0,0.2438187]
[1741532478675,0.00279192,83755.0,83754.0,0.2438187]
[1741532478865,0.00279192,83755.0,83754.0,0.3740187]
[1741532479065,0.00279192,83755.0,83754.0,0.4990187]
[1741532479672,0.00279192,83755.0,83754.0,0.5865387]
[1741532480269,0.12220922,83755.0,83754.0,0.46712]
[1741532480675,0.00279192,83755.0,83754.0,0.5865387]
[1741532481174,0.00179192,83755.0,83754.0,0.5855387]
[1741532481369,0.00279192,83755.0,83754.0,0.5865387]
[1741532482169,0.00279192,83755.0,83754.0,0.5855387]
[1741532482576,0.01317044,83779.0,83754.0,0.83292]
[1741532482767,0.01317044,83779.0,83778.0,0.1193845]
[1741532483173,0.3608,83784.0,83783.0,0.1193774]
[1741532483682,0.00179103,83796.0,83783.0,0.01432796]
[1741532483870,0.00179103,83796.0,83795.0,0.1193603]
[1741532484481,0.1193603,83795.0,83794.0,0.2569]
[1741532484669,0.1193603,83795.0,83794.0,0.1286]
[1741532484670,0.5065603,83795.0,83794.0,0.1286]
[1741532485177,0.1193703,83788.0,83783.0,0.002]
[1741532485480,0.4791703,83788.0,83786.0,0.00982]
[1741532485679,0.4791703,83788.0,83787.0,0.12927902]
[1741532485982,0.44828,83788.0,83761.0,0.08748]
[1741532486177,0.3608,83775.0,83765.0,0.1251]
[1741532486479,0.4802016,83766.0,83765.0,0.1251]
[1741532486667,0.3598,83766.0,83765.0,0.1251]
[1741532487269,0.44628,83766.0,83758.0,0.00179078]
[1741532487471,0.21546827,83765.0,83759.0,0.1251]
[1741532487672,0.1194102,83760.0,83759.0,0.1251]
[1741532487874,0.13336491,83760.0,83759.0,0.1251]
[1741532488076,0.1194116,83759.0,83758.0,0.00179078]
[1741532488267,0.6055116,83759.0,83758.0,0.12659078]
[1741532488672,0.3608,83759.0,83758.0,0.24600378]
[1741532489073,0.3598,83759.0,83758.0,0.24600378]
[1741532489782,0.001,83760.0,83759.0,0.1194116]
[1741532490078,0.00017866,83774.0,83773.0,0.1193916]
[1741532490771,0.00017866,83774.0,83773.0,0.2441916]
[1741532491472,0.00217866,83774.0,83773.0,0.2441916]
[1741532491673,0.00217866,83774.0,83773.0,0.25798589]
[1741532492083,0.1193496,83803.0,83795.0,0.1193603]
[1741532492280,0.48739103,83796.0,83795.0,0.1193603]
[1741532492968,0.36259103,83796.0,83795.0,0.1193603]
[1741532493374,0.00179103,83796.0,83795.0,0.1193603]
[1741532493680,0.00679103,83796.0,83795.0,0.1203603]
[1741532493982,0.00679103,83796.0,83795.0,0.1213603]
[1741532494979,0.48694993,83796.0,83795.0,0.1288]
[1741532495481,0.48694993,83796.0,83795.0,0.2481603]
[1741532495482,0.00679103,83796.0,83795.0,0.2481603]
[1741532496177,0.13779103,83796.0,83795.0,0.2481603]
[1741532496977,0.00679103,83796.0,83795.0,0.2481603]
[1741532499078,0.00679103,83796.0,83795.0,0.3717603]
[1741532500675,0.00679103,83796.0,83795.0,0.7325603]
[1741532501077,0.00679103,83796.0,83795.0,0.8199203]
[1741532502577,0.00679103,83796.0,83795.0,0.4591203]
[1741532505082,0.00679103,83796.0,83795.0,0.3717603]
[1741532506085,0.12939103,83799.0,83798.0,0.119356]
[1741532506488,0.1,83800.0,83799.0,0.1193546]
[1741532506682,0.1,83800.0,83799.0,0.3754546]
[1741532507184,0.1,83800.0,83799.0,0.4628146]
[1741532509086,0.1,83800.0,83799.0,0.4638146]
[1741532509288,0.1,83800.0,83799.0,0.4648146]
[1741532513978,0.1,83800.0,83799.0,0.3774546]
[1741532514182,0.1,83800.0,83799.0,0.2464546]
[1741532515192,0.3575,83800.0,83799.0,0.2464546]
[1741532515686,0.4768532,83800.0,83799.0,0.2464546]
[1741532515886,0.3575,83800.0,83799.0,0.2464546]
[1741532517486,0.37121773,83800.0,83799.0,0.2464546]
[1741532519479,0.37121773,83800.0,83799.0,0.2454546]
[1741532519685,0.57785093,83800.0,83799.0,0.002]
[1741532519983,0.57785093,83800.0,83799.0,0.1213546]
[1741532519984,0.45849773,83800.0,83799.0,0.1213546]
[1741532520180,0.45849773,83800.0,83799.0,0.2509546]
[1741532520396,0.45859003,83800.0,83799.0,0.1326]
[1741532520600,0.45859003,83800.0,83799.0,0.002]
[1741532520888,0.57794323,83800.0,83799.0,0.002]
[1741532521091,0.45859003,83800.0,83799.0,0.1232]
[1741532521295,0.1000923,83800.0,83799.0,0.2425546]
[1741532521490,0.1000923,83800.0,83799.0,0.3732546]
[1741532522596,0.1000923,83800.0,83799.0,0.3722546]
[1741532526197,0.2194455,83800.0,83799.0,0.3722546]
[1741532526699,0.8355455,83800.0,83799.0,0.3722546]
[1741532526888,0.4747455,83800.0,83799.0,0.2529]
[1741532527096,0.4747455,83800.0,83799.0,0.1222]
[1741532527499,0.4747455,83800.0,83799.0,0.001]
[1741532528294,0.3553923,83800.0,83799.0,0.001]
[1741532528496,0.3553923,83800.0,83799.0,0.1203546]
[1741532528806,0.3553923,83800.0,83799.0,0.2539546]
[1741532528993,0.3553923,83800.0,83799.0,0.3859546]
[1741532529500,0.3553923,83800.0,83799.0,0.3849546]
[1741532529799,0.3553923,83800.0,83799.0,0.3859546]
[1741532532104,0.7161923,83800.0,83799.0,0.3859546]
[1741532532711,0.8355455,83800.0,83799.0,0.1346]
[1741532532897,0.9227855,83800.0,83799.0,0.001]
[1741532533207,0.9227855,83800.0,83799.0,0.2458546]
[1741532533500,0.9227855,83800.0,83799.0,0.2448546]
[1741532533704,1.0446855,83800.0,83799.0,0.1265]
[1741532533898,0.9253323,83800.0,83799.0,0.1265]
[1741532534101,0.5963352,83861.0,83799.0,0.2522]
[1741532534102,0.01399365,83808.0,83799.0,0.2522]
[1741532534298,0.01399365,83808.0,83807.0,0.1193432]
[1741532534803,0.2456,83816.0,83806.0,0.2512]
[1741532535004,0.0596684,83812.0,83806.0,0.2512]
[1741532535214,0.4801432,83807.0,83806.0,0.3705446]
[1741532535596,0.3608,83807.0,83806.0,0.3705446]
[1741532535806,0.4791432,83807.0,83806.0,0.3705446]
[1741532536110,0.6028432,83807.0,83806.0,0.3705446]
[1741532536811,0.6028432,83807.0,83806.0,0.3715446]
[1741532537209,0.4835,83807.0,83806.0,0.3715446]
[1741532537407,0.4791432,83807.0,83806.0,0.3725446]
[1741532538102,0.4801432,83807.0,83806.0,0.3725446]
[1741532538613,0.4801432,83807.0,83806.0,0.3715446]
[1741532538912,0.4801432,83807.0,83806.0,0.3725446]
[1741532538913,0.3608,83807.0,83806.0,0.3725446]
[1741532539410,0.3608,83807.0,83806.0,0.3715446]
[1741532539610,0.3608,83807.0,83806.0,0.3725446]
[1741532540411,0.1221,83808.0,83806.0,0.3725446]
[1741532540615,0.1221,83808.0,83807.0,0.1193432]
[1741532540906,0.2414418,83808.0,83807.0,0.1193432]
[1741532541106,0.2414418,83808.0,83807.0,0.3793432]
[1741532541298,0.1221,83808.0,83807.0,0.3793432]
[1741532543510,0.1221,83808.0,83807.0,0.3803432]
[1741532544011,0.6022418,83808.0,83807.0,0.3803432]
[1741532544211,0.4829,83808.0,83807.0,0.3803432]
[1741532544515,0.1221,83808.0,83807.0,0.3803432]
[1741532544818,0.4829,83808.0,83807.0,0.3803432]
[1741532545001,0.1221,83808.0,83807.0,0.3803432]
[1741532546307,0.03178699,83829.0,83815.0,0.1193318]
[1741532546611,0.03178699,83829.0,83816.0,0.4983304]
[1741532546612,0.1193194,83824.0,83816.0,0.4983304]
[1741532546910,0.1193269,83819.0,83816.0,0.4983304]
[1741532547102,0.1193269,83819.0,83816.0,0.379]
[1741532547302,0.119329,83817.0,83816.0,0.498329]
[1741532548215,0.119329,83817.0,83816.0,0.499329]
[1741532549117,0.119329,83817.0,83816.0,0.500329]
[1741532551414,0.13284324,83819.0,83818.0,0.1193275]
[1741532551917,0.13284324,83819.0,83816.0,0.4406645]
[1741532551918,0.3608,83823.0,83822.0,0.1193218]
[1741532552714,0.123,83827.0,83822.0,0.1193218]
[1741532552715,0.2423162,83827.0,83826.0,0.1193162]
[1741532553024,0.2423162,83827.0,83823.0,0.0596599]
[1741532553025,0.0596581,83826.0,83822.0,0.2543]
[1741532553211,0.1789743,83826.0,83825.0,0.2543]
[1741532553409,0.1789743,83826.0,83825.0,0.1329]
[1741532553609,0.1193261,83819.0,83818.0,0.001]
[1741532553809,0.119329,83817.0,83816.0,0.001]
[1741532554223,0.2487,83818.0,83812.0,0.1214]
[1741532554422,0.2428304,83816.0,83812.0,0.1214]
[1741532554923,0.2428304,83816.0,83813.0,0.1218]
[1741532555515,0.2428304,83816.0,83815.0,0.01605]
[1741532555710,0.2418304,83816.0,83815.0,0.01605]
[1741532556515,0.2418304,83816.0,83815.0,0.01705]
[1741532557521,0.2428304,83816.0,83815.0,0.01705]
[1741532559511,0.4338704,83816.0,83806.0,0.00738]
[1741532559717,0.1193717,83787.0,83786.0,0.3608]
[1741532560225,0.1193731,83786.0,83785.0,0.1261]
[1741532560416,0.2435731,83786.0,83785.0,0.1261]
[1741532560818,0.2425731,83786.0,83785.0,0.1261]
[1741532561022,0.1242,83786.0,83781.0,0.00179027]
[1741532561217,0.1193788,83782.0,83781.0,0.00179027]
[1741532561419,0.1193845,83778.0,83777.0,0.00017902]
[1741532561615,0.1193874,83776.0,83775.0,0.13279541]
[1741532561812,0.3975074,83776.0,83775.0,0.13279541]
[1741532562222,0.5475074,83776.0,83775.0,0.13279541]
[1741532563119,0.43743734,83776.0,83760.0,0.29493952]
[1741532563319,0.1194259,83749.0,83748.0,0.49850606]
[1741532563531,0.1194259,83749.0,83748.0,0.49786606]
[1741532563532,0.5673459,83749.0,83748.0,0.49786606]
[1741532563821,0.5663459,83749.0,83748.0,0.49786606]
[1741532564223,0.5653459,83749.0,83748.0,0.49786606]
[1741532564417,0.59792,83749.0,83743.0,0.0006]
[1741532564622,0.1194615,83724.0,83723.0,0.1205]
[1741532564822,0.1194615,83724.0,83723.0,0.2531]
[1741532564823,0.10035628,83724.0,83723.0,0.2531]
[1741532565029,0.2065415,83724.0,83723.0,0.2531]
[1741532565625,0.08608,83724.0,83723.0,0.1326]
[1741532565827,0.08508,83724.0,83723.0,0.2520629]
[1741532566326,0.08508,83724.0,83723.0,0.1326]
[1741532566529,0.2115415,83724.0,83723.0,0.1326]
[1741532566829,0.09208,83724.0,83723.0,0.1326]
[1741532567029,0.09208,83724.0,83723.0,0.3725629]
[1741532567330,0.5673415,83724.0,83723.0,0.2441]
[1741532568017,0.2065415,83724.0,83723.0,0.2441]
[1741532568616,0.1194644,83722.0,83721.0,0.00035]
[1741532569226,0.2065415,83724.0,83721.0,0.00035]
[1741532569227,0.08708,83724.0,83721.0,0.00035]
[1741532569425,0.2065417,83724.0,83721.0,0.00035]
[1741532569627,0.08708,83724.0,83721.0,0.00035]
[1741532569829,0.1194644,83722.0,83721.0,0.00035]
[1741532570531,0.08708,83724.0,83721.0,0.12445]
[1741532570932,0.08708,83724.0,83722.0,0.1237]
[1741532570933,0.1194629,83723.0,83722.0,0.1237]
[1741532571132,0.1194629,83723.0,83722.0,0.1187]
[1741532571626,0.08508,83724.0,83722.0,0.2381637]
[1741532571823,0.08508,83724.0,83723.0,0.1194629]
[1741532572227,0.08508,83724.0,83723.0,0.2435629]
[1741532572428,0.2045415,83724.0,83723.0,0.1241]
[1741532574332,0.08508,83724.0,83723.0,0.2435629]
[1741532574927,0.08508,83724.0,83723.0,0.3745629]
[1741532576030,0.08508,83724.0,83723.0,0.2551]
[1741532576234,0.44792,83726.0,83725.0,0.1194601]
[1741532576432,0.3608,83735.0,83731.0,0.1194515]
[1741532576733,0.00179242,83739.0,83731.0,0.2065715]
[1741532577742,0.1194422,83738.0,83731.0,0.2065715]
[1741532578630,0.00179242,83739.0,83731.0,0.2065715]
[1741532579038,0.12123352,83739.0,83731.0,0.2065715]
[1741532580439,0.1194477,83734.0,83730.0,0.1194518]
[1741532580642,0.11962924,83732.0,83731.0,0.2618]
[1741532580937,0.84122924,83732.0,83731.0,0.2618]
[1741532581143,0.84122924,83732.0,83731.0,0.1322]
[1741532581437,0.72262924,83732.0,83731.0,0.1322]
[1741532581642,0.1194629,83723.0,83722.0,0.1296]
[1741532581837,0.4802629,83723.0,83722.0,0.1296]
[1741532582046,0.3608,83723.0,83722.0,0.2490644]
[1741532582230,0.0597264,83731.0,83722.0,0.2490644]
[1741532582231,0.00017914,83732.0,83729.0,0.0597265]
[1741532582431,0.3608,83762.0,83730.0,0.57748]
[1741532582737,0.19124,83764.0,83763.0,0.1194059]
[1741532582939,0.19124,83764.0,83753.0,0.08708]
[1741532583140,0.19124,83764.0,83754.0,0.1271]
[1741532583437,0.19124,83764.0,83754.0,0.2521]
[1741532583642,0.1194173,83755.0,83754.0,0.2521]
[1741532584043,0.00017914,83767.0,83765.0,0.119403]
[1741532584234,0.00017914,83767.0,83765.0,0.206483]
[1741532584531,0.2131274,83789.0,83788.0,0.1193703]
[1741532584734,0.1193774,83783.0,83782.0,0.08708]
[1741532585043,0.3608,83783.0,83782.0,0.08708]
[1741532585230,0.3608,83790.0,83782.0,0.08708]
[1741532585429,0.3608,83790.0,83787.0,0.1193713]
[1741532585634,0.30641889,83798.0,83785.0,0.0596868]
[1741532585635,0.3608,83791.0,83785.0,0.0596868]
[1741532585841,0.1193704,83788.0,83785.0,0.0596868]
[1741532586434,0.1193709,83788.0,83785.0,0.0596868]
[1741532586642,0.1193731,83786.0,83783.0,0.1209]
[1741532587042,0.1193731,83786.0,83784.0,0.1193753]
[1741532587345,0.4204848,83789.0,83784.0,0.1193753]
[1741532587545,0.3608,83789.0,83788.0,0.1193703]
[1741532587843,0.3608,83789.0,83784.0,0.059688]
[1741532588041,0.1193745,83785.0,83784.0,0.059688]
[1741532588240,0.00017902,83794.0,83793.0,0.1193631]
[1741532588438,0.00017902,83794.0,83793.0,0.2064031]
[1741532589038,0.00017902,83794.0,83793.0,0.4568031]
[1741532592452,0.00017902,83794.0,83793.0,0.46583826]
[1741532594944,2e-08,83794.0,83793.0,0.61583826]
[1741532595142,2e-08,83794.0,83793.0,0.37879826]
[1741532595347,2e-08,83794.0,83793.0,0.46579826]
[1741532595549,0.3608,83815.0,83794.0,0.0596806]
[1741532595854,0.087,83817.0,83799.0,0.1193537]
[1741532595855,0.1193559,83800.0,83799.0,0.1193537]
[1741532596146,0.1193559,83800.0,83799.0,0.087]
[1741532596645,0.1193559,83800.0,83793.0,0.25943516]
[1741532596646,0.1271,83805.0,83793.0,0.25943516]
[1741532596854,0.1193617,83795.0,83794.0,0.1193596]
[1741532597050,0.0596758,83802.0,83794.0,0.2529]
[1741532597242,0.36097878,83808.0,83807.0,0.1193432]
[1741532597442,0.00017878,83808.0,83807.0,0.1193432]
[1741532598144,0.11952058,83808.0,83807.0,0.3751432]
[1741532598343,0.00017878,83808.0,83807.0,0.3751432]
[1741532598543,0.11952058,83808.0,83807.0,0.3751432]
[1741532599052,0.11952058,83808.0,83807.0,0.2558]
[1741532599251,0.36802058,83808.0,83807.0,0.2558]
[1741532600260,0.36802058,83808.0,83807.0,0.3751432]
[1741532600645,0.36802058,83808.0,83807.0,0.2558]
[1741532601752,0.72882058,83808.0,83807.0,0.2558]
[1741532603251,0.1193432,83807.0,83806.0,0.00473]
[1741532603452,0.3386032,83807.0,83806.0,0.00473]
[1741532603650,0.5896032,83807.0,83806.0,0.00293758]
[1741532603856,0.7396032,83807.0,83806.0,0.00293758]
[1741532604152,0.1193617,83794.0,83793.0,0.1315]
[1741532604358,0.1193646,83792.0,83791.0,0.00017902]
[1741532604851,0.4801646,83792.0,83791.0,0.00017902]
[1741532605162,0.2428646,83792.0,83791.0,0.00017902]
[1741532605355,0.1235,83792.0,83791.0,0.25287902]
[1741532605560,0.1235,83792.0,83791.0,0.37224502]
[1741532606159,0.11475,83794.0,83793.0,0.1193631]
[1741532606349,0.02779,83794.0,83793.0,0.4801631]
[1741532606750,0.02779,83794.0,83793.0,0.7210631]
[1741532606951,0.1471517,83794.0,83793.0,0.3602631]
[1741532607147,0.02779,83794.0,83793.0,0.2409]
[1741532607552,0.02779,83794.0,83793.0,0.3602631]
[1741532608454,0.02779,83794.0,83793.0,0.7210631]
[1741532608857,0.02779,83794.0,83793.0,0.3602631]
[1741532610758,0.1471517,83794.0,83793.0,0.3602631]
[1741532610960,0.1471517,83794.0,83793.0,0.2409]
[1741532611360,0.1471517,83794.0,83791.0,0.00017902]
[1741532611361,0.1193646,83792.0,83791.0,0.00017902]
[1741532611569,0.4801646,83792.0,83791.0,0.00017902]
[1741532612068,0.7342646,83792.0,83791.0,0.00017902]
[1741532614759,0.74848209,83792.0,83791.0,0.00017902]
[1741532614960,0.7342646,83792.0,83791.0,0.00017902]
[1741532617664,0.8211846,83792.0,83791.0,0.00017902]
[1741532619668,0.83550626,83792.0,83791.0,0.00017902]
[1741532620663,1.04978089,83792.0,83791.0,0.00017902]
[1741532620863,0.1193859,83777.0,83776.0,0.0017902]
[1741532621064,0.2063059,83777.0,83776.0,0.0017902]
[1741532621269,0.5671059,83777.0,83776.0,0.0017902]
[1741532622270,0.1193973,83769.0,83768.0,0.00017902]
[1741532622472,0.5670773,83769.0,83768.0,0.00017902]
[1741532622860,0.5670773,83769.0,83768.0,0.13117902]
[1741532625360,0.44768,83769.0,83768.0,0.25057782]
[1741532625572,0.44768,83769.0,83768.0,0.13117902]
[1741532625772,0.08688,83769.0,83768.0,0.25057782]
[1741532625968,0.08688,83769.0,83768.0,0.37137782]
[1741532626870,0.17848622,83771.0,83768.0,0.37137782]
[1741532626871,0.17848622,83771.0,83770.0,0.1193959]
[1741532627077,0.21427463,83776.0,83775.0,0.1193888]
[1741532627266,0.21427463,83776.0,83775.0,0.5670688]
[1741532627466,0.21427463,83779.0,83778.0,0.1193845]
[1741532627878,0.1193874,83776.0,83775.0,0.08688]
[1741532628171,0.1193874,83776.0,83775.0,0.21208]
[1741532628366,0.1193874,83776.0,83775.0,0.3314688]
[1741532628567,0.1193874,83776.0,83775.0,0.21208]
[1741532628762,0.1193874,83776.0,83775.0,0.1252]
[1741532629274,0.2387874,83776.0,83775.0,0.1252]
[1741532629673,0.1328432,83776.0,83775.0,0.2445888]
[1741532630076,0.0134432,83776.0,83775.0,0.2445888]
[1741532630281,0.5682251,83778.0,83777.0,0.1193859]
[1741532630474,0.5670651,83778.0,83777.0,0.1193859]
[1741532630775,0.1193874,83776.0,83775.0,0.2512]
[1741532630975,0.13282191,83776.0,83775.0,0.2512]
[1741532631669,0.37922191,83776.0,83775.0,0.2512]
[1741532631872,0.37922191,83776.0,83775.0,0.1252]
[1741532632080,0.1193959,83770.0,83769.0,0.1319]
[1741532632270,0.1193959,83770.0,83769.0,0.1283]
[1741532632271,0.5670759,83770.0,83769.0,0.1283]
[1741532632476,0.1193973,83769.0,83768.0,0.00017902]
[1741532632680,0.3657973,83769.0,83768.0,0.00017902]
[1741532635080,0.0597017,83765.0,83748.0,0.00892402]
[1741532635275,0.44888001,83770.0,83755.0,0.121]
[1741532635276,0.4802159,83756.0,83755.0,0.121]
[1741532635477,0.5670959,83756.0,83755.0,0.121]
[1741532635675,0.44768,83756.0,83755.0,0.2404173]
[1741532635873,0.08688,83756.0,83755.0,0.2404173]
[1741532636278,0.08688,83756.0,83755.0,0.121]
[1741532636480,0.2062959,83756.0,83755.0,0.121]
[1741532636873,0.08688,83756.0,83755.0,0.3666173]
[1741532637586,0.2062959,83756.0,83755.0,0.3666173]
[1741532637987,0.2194211,83756.0,83755.0,0.2472]
[1741532640385,0.0131252,83756.0,83755.0,0.3666173]
[1741532640584,0.08684,83758.0,83755.0,0.3666173]
[1741532640786,0.21943978,83758.0,83756.0,0.1194147]
[1741532640997,0.1194144,83757.0,83756.0,0.1194147]
[1741532641284,0.10002578,83758.0,83751.0,0.1268]
[1741532641491,0.1194216,83752.0,83751.0,0.1268]
[1741532642091,0.1194244,83750.0,83747.0,0.00017902]
[1741532642691,0.3723244,83750.0,83747.0,0.00017902]
[1741532643191,0.2529,83750.0,83747.0,0.00017902]
[1741532643393,0.1194273,83748.0,83747.0,0.00017902]
[1741532644191,0.1221,83750.0,83747.0,0.00017902]
[1741532644388,0.37562665,83751.0,83750.0,0.1194244]
[1741532644600,0.15931734,83753.0,83750.0,0.059712]
[1741532644904,0.15931734,83753.0,83749.0,0.1194259]
[1741532645204,0.15931734,83753.0,83751.0,0.1194228]
[1741532645400,0.15931734,83753.0,83748.0,0.1194273]
[1741532645597,0.15931734,83753.0,83747.0,0.08701902]
[1741532645797,0.1194273,83748.0,83747.0,0.00017902]
[1741532647301,0.2432273,83748.0,83747.0,0.00017902]
[1741532647505,0.1194458,83735.0,83734.0,0.1316]
[1741532647895,0.08684,83736.0,83734.0,0.1316]
[1741532647896,0.08684,83736.0,83735.0,0.1194458]
[1741532650100,0.2062844,83736.0,83735.0,0.1194458]
[1741532650402,0.1194458,83735.0,83734.0,0.2510471]
[1741532650807,0.4802458,83735.0,83734.0,0.1316]
[1741532651195,0.2462458,83735.0,83734.0,0.1316]
[1741532651394,0.3706458,83735.0,83734.0,0.1316]
[1741532651602,0.7314458,83735.0,83734.0,0.1316]
[1741532651901,0.1194558,83728.0,83711.0,0.37020837]
[1741532652097,0.5670958,83728.0,83712.0,0.1213]
[1741532652297,0.1194772,83713.0,83712.0,0.1213]
[1741532652503,0.1194829,83709.0,83708.0,0.00179178]
[1741532652899,0.4802829,83709.0,83708.0,0.00179178]
[1741532653398,0.01337742,83709.0,83708.0,0.00179178]
[1741532653602,0.08684,83713.0,83708.0,0.00179178]
[1741532653803,0.1194809,83711.0,83708.0,0.00179178]
[1741532654003,0.09958884,83713.0,83712.0,0.1194786]
[1741532654710,0.08684,83713.0,83712.0,0.1194786]
[1741532654902,0.2063172,83713.0,83712.0,0.1194786]
[1741532655110,0.1194829,83709.0,83708.0,0.00179178]
[1741532655611,0.4802829,83709.0,83708.0,0.00179178]
[1741532658014,0.7364829,83709.0,83708.0,0.00179178]
[1741532659117,0.7364829,83709.0,83700.0,0.10017914]
[1741532659118,0.1194943,83701.0,83700.0,0.10017914]
[1741532659412,0.5671343,83701.0,83700.0,0.10017914]
[1741532659602,0.5671343,83701.0,83700.0,0.0453977]
[1741532659806,0.44764,83701.0,83683.0,0.1241]
[1741532660007,0.1195186,83684.0,83683.0,0.1241]
[1741532660210,0.08684,83684.0,83683.0,0.24362]
[1741532660410,0.08684,83684.0,83683.0,0.37502]
[1741532660611,0.11870905,84294.0,83683.0,0.2555]
[1741532660817,0.1275,83698.0,83693.0,0.1195058]
[1741532661006,0.44764,83694.0,83693.0,0.1195058]
[1741532661211,0.1195058,83693.0,83692.0,0.1246]
[1741532661513,0.2440058,83693.0,83692.0,0.256]
[1741532661810,0.2440058,83693.0,83681.0,0.1314]
[1741532661811,0.2562,83693.0,83681.0,0.1314]
[1741532662014,0.1195215,83682.0,83681.0,0.256]
[1741532662312,0.08684,83692.0,83681.0,0.256]
[1741532662518,0.3608,83694.0,83693.0,0.1195058]
[1741532663010,0.3608,83704.0,83693.0,0.1195058]
[1741532663011,0.01274359,83696.0,83693.0,0.0597525]
[1741532663217,0.36209926,83697.0,83694.0,0.3662034]
[1741532663415,0.00017925,83697.0,83696.0,0.1195015]
[1741532665418,0.11967935,83697.0,83696.0,0.1195015]
[1741532665714,0.1195029,83695.0,83694.0,0.2467]
[1741532666016,0.1195029,83695.0,83694.0,0.3662043]
[1741532666512,0.1195029,83695.0,83694.0,0.1195043]
[1741532666817,0.1195086,83691.0,83690.0,0.3608]
[1741532667211,0.1195086,83691.0,83690.0,0.48031]
[1741532667514,0.00017925,83697.0,83696.0,0.1195015]
[1741532668516,0.17943095,83697.0,83696.0,0.08684]
[1741532668815,0.05993085,83697.0,83688.0,0.0868]
[1741532669009,0.3608,83691.0,83690.0,0.11951]
[1741532669207,0.4803086,83691.0,83690.0,0.11951]
[1741532670125,0.4803086,83691.0,83690.0,0.37471]
[1741532670306,0.4803086,83691.0,83690.0,0.2552]
[1741532670506,0.1195229,83681.0,83671.0,0.1195368]
[1741532670710,0.4803229,83681.0,83672.0,0.1249]
[1741532670906,0.4803229,83681.0,83672.0,0.2444345]
[1741532671111,0.4803229,83681.0,83673.0,0.1195339]
[1741532671315,0.4803229,83681.0,83675.0,0.1195311]
[1741532671620,0.4803229,83681.0,83676.0,0.2518]
[1741532672017,0.48023109,83681.0,83676.0,0.2518]
[1741532672409,0.48023109,83681.0,83677.0,0.1195284]
[1741532672616,0.48023109,83681.0,83676.0,0.2518]
[1741532674122,0.48023109,83681.0,83678.0,0.1195271]
[1741532674318,0.48023109,83681.0,83676.0,0.2518]
[1741532675123,0.48023109,83681.0,83660.0,0.1195525]
[1741532675315,0.48023109,83681.0,83666.0,0.1279]
[1741532676216,0.63023109,83681.0,83680.0,1e-08]
[1741532676425,0.1195443,83666.0,83635.0,0.3502446]
[1741532676624,0.9279443,83666.0,83645.0,0.12763185]
[1741532676819,0.9279443,83666.0,83656.0,0.1195579]
[1741532677023,0.9279443,83666.0,83659.0,0.0597765]
[1741532677526,1.0503443,83666.0,83662.0,0.1195496]
[1741532677716,1.0503443,83666.0,83663.0,0.2522]